fUSD/lending_fUSD_20240114
["ID","MTS","AMOUNT","RATE_DAILY","PERIOD"]
[311549107,1705217761544,-2778.38766529,0.00022121,2]
[311549108,1705217761566,-150.0,0.00022122,2]
[311549109,1705217761589,-172.57285813,0.00022124,2]
[311549110,1705217761611,-19000.90173546,0.00022161,2]
[311549111,1705217761634,-158.41,0.00022165,2]
[311549112,1705217761657,-159.84,0.00022227,2]
[311549113,1705217761679,-172.57285809,0.00022279,2]
[311549114,1705217761701,-1221.3464262,0.00022307,2]
[311549115,1705217761723,-172.57285809,0.00022434,2]
[311549116,1705217761745,-156.2,0.00022538,2]
[311549117,1705217761767,-158.41,0.0002255,2]
[311549118,1705217761789,-172.57285809,0.0002259,2]
[311549119,1705217761810,-150.0,0.00022719,2]
[311549120,1705217761833,-172.57285809,0.00022745,2]
[311549121,1705217761975,300.0,0.0002212,2]
[311549122,1705217762149,150.0,0.00022502,2]
[311549123,1705217762287,160.45272562,0.000228,2]
[311549124,1705217775867,406.07310731,0.00022211,2]
[311549125,1705217780837,170.37,0.0001772,2]
[311549126,1705217812044,162.0,0.00017602,2]
[311549127,1705217813246,151.0,0.00017602,2]
[311549128,1705217814565,151.0,0.00017602,2]
[311549133,1705217932502,2000.0,0.00022137,2]
[311549134,1705217940994,203.67350951,0.00022786,2]
[311549135,1705217946953,203.6735095,0.00022798,2]
[311549138,1705218029224,156.2,0.00020194,2]
[311549139,1705218046946,172.57285809,0.00022786,2]
[311549140,1705218078200,158.41,0.00022273,2]
[311549141,1705218110459,284.99580875,0.000228,2]
[311549142,1705218113059,152.73,0.00022337,2]
[311549143,1705218154331,491.78,0.00022095,2]
[311549144,1705218196926,68.30901691,0.000228,2]
[311549145,1705218472132,156.2,0.00020153,2]
[311549146,1705218563980,1913.74997834,0.000221,2]
[311549147,1705218578525,155.0,0.000221,2]
[311549162,1705218631449,-541.24591888,0.00022112,2]
[311549163,1705218631461,-458.79071466,0.00022112,2]
[311549164,1705218631470,-150.34,0.00022113,2]
[311549165,1705218631479,-158.18,0.00022226,2]
[311549166,1705218631491,-158.18,0.00022516,2]
[311549167,1705218631500,-182.3464926,0.00022798,2]
[311549168,1705218631509,-155.0,0.00022798,2]
[311549169,1705218631518,-4406.21917625,0.00022799,2]
[311549170,1705218631529,-2713.77991897,0.00022799,2]
[311549171,1705218631540,-748.90957449,0.00022799,2]
[311549172,1705218631554,-912.52924596,0.00022799,2]
[311549173,1705218631565,-3060.50973781,0.00022799,2]
[311549174,1705218631585,-3397.84142314,0.00022799,2]
[311549175,1705218631596,-265.0000001,0.00022799,2]
[311549176,1705218631626,-2280.33758538,0.00022799,2]
[311549177,1705218631635,-4670.38206768,0.000228,2]
[311549178,1705218631682,-642.23522154,0.000228,2]
[311549179,1705218631694,-324.55703253,0.000228,2]
[311549180,1705218631794,-734.84098344,0.000228,2]
[311549182,1705218631805,-1731.90627148,0.000228,2]
[311549196,1705218637468,-9853.26550642,0.000228,2]
[311549197,1705218637477,-216327.1539,0.000228,2]
[311549198,1705218637486,-363.24809483,0.000228,2]
[311549199,1705218637495,-178.81,0.000228,2]
[311549200,1705218637503,-158.18,0.00022806,2]
[311549201,1705218637512,-150.0,0.00022877,2]
[311549202,1705218637521,-366.91666991,0.00022886,2]
[311549203,1705218637530,-841.02993994,0.00022898,2]
[311549204,1705218637538,-2773.59262798,0.00022898,2]
[311549205,1705218637547,-9550.77926654,0.00022898,2]
[311549206,1705218637557,-247.98508818,0.00022898,2]
[311549207,1705218637566,-5088.72285834,0.00022898,2]
[311549208,1705218637574,-171.61355998,0.00022898,2]
[311549209,1705218637583,-2378.268,0.000229,2]
[311549210,1705218637592,-230477.5516,0.000229,2]
[311549211,1705218637601,-250.0,0.000229,2]
[311549212,1705218637610,-2570.3993,0.000229,2]
[311549213,1705218637618,-1756.50552648,0.000229,2]
[311549214,1705218637627,-669.6935,0.000229,2]
[311549215,1705218637636,-825.20715808,0.000229,2]
[311549216,1705218637645,-213.0,0.00022928,2]
[311549217,1705218637654,-215.21809469,0.00022975,2]
[311549218,1705218637663,-200.01126006,0.00022996,2]
[311549219,1705218637672,-312.48567408,0.00022996,2]
[311549220,1705218637681,-162.59683057,0.00022996,2]
[311549221,1705218637690,-213.1133476,0.00022996,2]
[311549222,1705218637699,-401.42100812,0.00022996,2]
[311549223,1705218637708,-284.22534118,0.00022996,2]
[311549224,1705218637716,-516.38375752,0.00022996,2]
[311549225,1705218637725,-474.19741654,0.00022996,2]
[311549226,1705218637735,-163.63015791,0.00022996,2]
[311549227,1705218637745,-260.84497991,0.00022996,2]
[311549228,1705218637754,-516.09965465,0.00022996,2]
[311549229,1705218637764,-765.16043303,0.00022996,2]
[311549230,1705218637773,-1894.20509999,0.00022996,2]
[311549231,1705218637783,-316.7261477,0.00022996,2]
[311549232,1705218637793,-337.22386989,0.00022996,2]
[311549233,1705218637803,-939.56400894,0.00022996,2]
[311549234,1705218637815,-303.96492788,0.00022996,2]
[311549235,1705218637824,-161.44781603,0.00022996,2]
[311549236,1705218637836,-250.02290447,0.00022996,2]
[311549237,1705218637845,-336.7179586,0.00022996,2]
[311549238,1705218637854,-232.58601557,0.00022996,2]
[311549239,1705218637863,-527.14717376,0.00022996,2]
[311549240,1705218637872,-279.80524737,0.00022996,2]
[311549241,1705218637881,-757.38163137,0.00022996,2]
[311549242,1705218637890,-4603.78584096,0.00022996,2]
[311549243,1705218637898,-5322.5786516,0.00022996,2]
[311549244,1705218637907,-237.12856079,0.00022996,2]
[311549246,1705218637916,-155.0,0.00022996,2]
[311549247,1705218637925,-155.0,0.00022996,2]
[311549249,1705218637934,-523.86841998,0.00022996,2]
[311549251,1705218637943,-197.66100934,0.00022996,2]
[311549253,1705218637951,-1041.78280285,0.00022996,2]
[311549255,1705218637960,-251.79771266,0.00022997,2]
[311549257,1705218637969,-544.54579109,0.00022997,2]
[311549259,1705218637978,-2311.29572041,0.00022997,2]
[311549261,1705218637987,-9235.28768959,0.00022997,2]
[311549263,1705218637996,-2895.90399733,0.00022997,2]
[311549265,1705218638005,-221.72555973,0.00022998,2]
[311549267,1705218638014,-927.6972884,0.00022998,2]
[311549269,1705218638023,-26028.97519795,0.00022998,2]
[311549271,1705218638032,-198.926255,0.00022998,2]
[311549273,1705218638041,-1432.8054114,0.00022998,2]
[311549275,1705218638050,-1706.52624545,0.00022998,2]
[311549278,1705218638063,-158.54128598,0.00022998,2]
[311549280,1705218638072,-158.37077341,0.00022998,2]
[311549282,1705218638081,-650.39761678,0.00022998,2]
[311549284,1705218638090,-156.72752715,0.00022998,2]
[311549286,1705218638099,-157.03083023,0.00022998,2]
[311549288,1705218638107,-2136.08960768,0.00022998,2]
[311549290,1705218638117,-219.97090241,0.00022998,2]
[311549291,1705218638127,-284.51783822,0.00022998,2]
[311549294,1705218638136,-3619.50520265,0.00022998,2]
[311549296,1705218638145,-3927.97706849,0.00022998,2]
[311549298,1705218638154,-522.77333764,0.00022998,2]
[311549300,1705218638163,-360.96980876,0.00022998,2]
[311549302,1705218638172,-386.25060104,0.00022998,2]
[311549304,1705218638180,-2616.11953545,0.00022998,2]
[311549306,1705218638189,-417.43921408,0.00022998,2]
[311549308,1705218638198,-200.49192303,0.00022998,2]
[311549310,1705218638206,-16814.30466557,0.00022998,2]
[311549312,1705218638215,-530.62921059,0.00022998,2]
[311549314,1705218638224,-155.83972693,0.00022998,2]
[311549316,1705218638234,-3849.91637634,0.00022998,2]
[311549318,1705218638243,-4324.48153211,0.00022998,2]
[311549320,1705218638252,-217.23658877,0.00022998,2]
[311549322,1705218638261,-376.11195413,0.00022998,2]
[311549324,1705218638270,-158.36958229,0.00022998,2]
[311549326,1705218638280,-531.80647171,0.00022998,2]
[311549327,1705218638289,-10033.68170994,0.00022998,2]
[311549330,1705218638299,-1134.78992634,0.00022999,2]
[311549332,1705218638312,-242.15573671,0.00022999,2]
[311549334,1705218638322,-156.01597444,0.00022999,2]
[311549335,1705218638331,-2942.76782523,0.00022999,2]
[311549338,1705218638341,-235.04520878,0.00022999,2]
[311549340,1705218638351,-155.40816434,0.00022999,2]
[311549342,1705218638360,-10865.41962906,0.00022999,2]
[311549344,1705218638369,-435.75894809,0.00022999,2]
[311549345,1705218638379,-150.0,0.00022999,2]
[311549347,1705218638388,-150.0,0.00022999,2]
[311549349,1705218638397,-150.0,0.00022999,2]
[311549351,1705218638406,-150.0,0.00022999,2]
[311549353,1705218638415,-541.0,0.00023,2]
[311549355,1705218638424,-188275.86223806,0.00023,2]
[311549357,1705218638434,-2527135.27925245,0.00023,2]
[311549362,1705218638475,-3379795.76861674,0.00023,2]
[311549364,1705218638484,-150.0,0.00023,2]
[311549367,1705218638494,-151.0,0.00023,2]
[311549369,1705218638503,-2000.0,0.00023,2]
[311549371,1705218638512,-200.0,0.00023,2]
[311549373,1705218638522,-156.2,0.0002302,2]
[311549374,1705218638532,-152.73,0.00023037,2]
[311549376,1705218638541,-150.1,0.00023093,3]
[311549378,1705218638550,-16513.0,0.00023093,2]
[311549380,1705218638561,-158.18,0.00023095,2]
[311549382,1705218638570,-176.14,0.00023098,2]
[311549384,1705218638578,-8472.2233976,0.00023117,2]
[311549386,1705218638587,-3124.3502122,0.00023117,2]
[311549388,1705218638596,-74635.1104682,0.00023117,2]
[311549390,1705218638605,-740.57975283,0.00023121,2]
[311549392,1705218638615,-300.02,0.00023122,2]
[311549394,1705218638624,-3293.74903118,0.00023122,2]
[311549396,1705218638634,-7979.07298282,0.00023123,2]
[311549398,1705218638643,-3303.60418818,0.00023123,2]
[311549400,1705218638652,-4903.47311796,0.00023123,2]
[311549402,1705218638661,-3770.96204363,0.0002313,2]
[311549404,1705218638670,-10197.1331115,0.00023133,2]
[311549406,1705218638679,-176.14,0.00023213,2]
[311549408,1705218638688,-442050.0465938,0.00023228,2]
[311549410,1705218638697,-8517.84040802,0.00023229,2]
[311549411,1705218638706,-2000.0,0.0002323,2]
[311549412,1705218638715,-200.0,0.0002323,2]
[311549413,1705218638724,-176.14,0.00023328,2]
[311549414,1705218638733,-159.84,0.00023338,2]
[311549415,1705218638742,-150.34,0.00023358,2]
[311549416,1705218638750,-158.18,0.00023385,2]
[311549417,1705218638759,-3823.0,0.000234,2]
[311549418,1705218638768,-40988.0,0.000234,2]
[311549419,1705218638778,-150.04,0.00023428,2]
[311549420,1705218638787,-176.14,0.00023444,2]
[311549421,1705218638799,-1785.53797462,0.00023462,2]
[311549423,1705218638811,-200.0,0.00023462,2]
[311549425,1705218638820,-295.49,0.00023465,2]
[311549427,1705218638829,-176.14,0.00023559,2]
[311549429,1705218638839,-176.14,0.00023675,2]
[311549431,1705218638848,-152.73,0.00023737,2]
[311549433,1705218638857,-176.14,0.0002379,2]
[311549435,1705218638865,-176.14,0.00023906,2]
[311549437,1705218638875,-1756.50552638,0.00023964,2]
[311549439,1705218638885,-155.0,0.00024,2]
[311549441,1705218638894,-431.20316627,0.00024,2]
[311549443,1705218638903,-200.98944307,0.00024,2]
[311549445,1705218638911,-176.14,0.00024021,2]
[311549447,1705218638920,-155.67632372,0.000241,2]
[311549449,1705218638929,-176.14,0.00024137,2]
[311549451,1705218638939,-150.04,0.0002416,2]
[311549453,1705218638948,-167.0,0.00024297,2]
[311549454,1705218638957,-157.61,0.00024355,2]
[311549456,1705218638966,-152.73,0.00024438,2]
[311549458,1705218638975,-159.84,0.00024449,2]
[311549460,1705218638984,-150.34,0.00024603,2]
[311549462,1705218638993,-7178.0857749,0.00024649,2]
[311549465,1705218639004,-2647.1036895,0.00024649,2]
[311549467,1705218639013,-63248.2468991,0.00024649,2]
[311549469,1705218639022,-250.0,0.00024658,2]
[311549471,1705218639031,-8323.0654045,0.00024666,2]
[311549473,1705218639040,-835.0,0.000247,2]
[311549475,1705218639049,-1234.0,0.000247,2]
[311549477,1705218639061,-1252.0,0.000247,2]
[311549479,1705218639073,-1943.187,0.000247,2]
[311549481,1705218639082,-298.959,0.000247,2]
[311549483,1705218639091,-1399.523,0.000247,2]
[311549485,1705218639100,-19688.0,0.000247,2]
[311549487,1705218639109,-150.033,0.000247,2]
[311549489,1705218639118,-635.27,0.00024719,2]
[311549491,1705218639127,-295.49,0.00024835,2]
[311549493,1705218639138,-569.31,0.00024851,2]
[311549495,1705218639147,-491.78,0.00024857,2]
[311549497,1705218639157,-201.87194842,0.00025,2]
[311549499,1705218639166,-303.21915795,0.00025,2]
[311549501,1705218639175,-724.73847274,0.00025,2]
[311549504,1705218639184,-1583.00550367,0.00025,2]
[311549506,1705218639194,-630.40224577,0.00025,2]
[311549508,1705218639203,-387.54188947,0.00025,2]
[311549510,1705218639213,-1070.01161759,0.00025,2]
[311549512,1705218639222,-167.23848345,0.00025,2]
[311549514,1705218639231,-1247.79685735,0.00025,2]
[311549516,1705218639241,-430.0,0.00025,2]
[311549518,1705218639250,-710.30311205,0.00025,2]
[311549520,1705218639259,-2804.01741076,0.00025,2]
[311549522,1705218639268,-650.0,0.00025,2]
[311549524,1705218639277,-450.0,0.0002502,3]
[311549526,1705218639286,-1756.50552638,0.00025027,2]
[311549527,1705218639295,-167.0,0.00025099,2]
[311549529,1705218639305,-1797.36684811,0.000251,2]
[311549531,1705218639314,-152.73,0.00025138,2]
[311549533,1705218639323,-273.8303687,0.0002549,2]
[311549534,1705218639333,-569.31,0.00025756,2]
[311549535,1705218639343,-150.0,0.00025824,2]
[311549536,1705218639352,-150.0,0.00025824,2]
[311549537,1705218639362,-50000.0,0.00025825,2]
[311549538,1705218639559,-152.73,0.00025838,2]
[311549539,1705218639569,-150.34,0.00025849,2]
[311549540,1705218639578,-156.2,0.00025888,2]
[311549541,1705218639587,-167.0,0.00025901,2]
[311549542,1705218639597,-200.91298037,0.00026,2]
[311549543,1705218639606,-3398.90812809,0.00026,2]
[311549544,1705218639615,-150.0,0.00026079,2]
[311549545,1705218639624,-1756.50552638,0.00026091,2]
[311549546,1705218639634,-213.0,0.00026299,7]
[311549547,1705218639644,-266.301935,0.000264,2]
[311549548,1705218639653,-152.73,0.00026539,2]
[311549549,1705218639662,-19615.69,0.00026575,2]
[311549550,1705218639672,-569.31,0.00026661,2]
[311549551,1705218639681,-167.0,0.00026703,2]
[311549552,1705218639690,-5000.0,0.000269,2]
[311549553,1705218639699,-155.0,0.00027,2]
[311549554,1705218639708,-415.79405029,0.00027,2]
[311549555,1705218639717,-230.48830562,0.00027,2]
[311549556,1705218639726,-230.48830562,0.00027,2]
[311549557,1705218639736,-230.48830562,0.00027,2]
[311549558,1705218639745,-230.48830562,0.00027,2]
[311549559,1705218639754,-230.48830562,0.00027,2]
[311549560,1705218639764,-230.48830562,0.00027,2]
[311549561,1705218639773,-230.48830562,0.00027,2]
[311549562,1705218639782,-230.48830562,0.00027,2]
[311549563,1705218639791,-230.48830562,0.00027,2]
[311549565,1705218639800,-230.48830562,0.00027,2]
[311549566,1705218639811,-230.48830562,0.00027,2]
[311549567,1705218639821,-230.48830562,0.00027,2]
[311549569,1705218639830,-230.48830562,0.00027,2]
[311549570,1705218639839,-230.48830562,0.00027,2]
[311549571,1705218639848,-230.48830562,0.00027,2]
[311549572,1705218639857,-230.48830562,0.00027,2]
[311549573,1705218639866,-230.48830562,0.00027,2]
[311549574,1705218639875,-230.48830562,0.00027,2]
[311549575,1705218639884,-230.48830562,0.00027,2]
[311549576,1705218639893,-230.48830562,0.00027,2]
[311549577,1705218639902,-230.48830562,0.00027,2]
[311549578,1705218639911,-230.48830562,0.00027,2]
[311549579,1705218639920,-230.48830562,0.00027,2]
[311549580,1705218639930,-230.48830562,0.00027,2]
[311549581,1705218639939,-230.48830562,0.00027,2]
[311549582,1705218639948,-230.48830562,0.00027,2]
[311549584,1705218639957,-230.48830562,0.00027,2]
[311549585,1705218639966,-230.48830562,0.00027,2]
[311549586,1705218639975,-230.48830562,0.00027,2]
[311549587,1705218639985,-230.48830562,0.00027,2]
[311549588,1705218639994,-230.48830562,0.00027,2]
[311549589,1705218640003,-230.48830562,0.00027,2]
[311549590,1705218640011,-230.48830562,0.00027,2]
[311549591,1705218640020,-230.48830562,0.00027,2]
[311549592,1705218640029,-230.48830562,0.00027,2]
[311549593,1705218640038,-230.48830562,0.00027,2]
[311549594,1705218640047,-230.48830562,0.00027,2]
[311549595,1705218640056,-230.48830562,0.00027,2]
[311549596,1705218640065,-230.48830562,0.00027,2]
[311549597,1705218640074,-230.48830562,0.00027,2]
[311549598,1705218640083,-230.48830562,0.00027,2]
[311549599,1705218640092,-230.48830562,0.00027,2]
[311549600,1705218640101,-230.48830562,0.00027,2]
[311549601,1705218640110,-230.48830562,0.00027,2]
[311549602,1705218640119,-230.48830562,0.00027,2]
[311549603,1705218640128,-230.48830562,0.00027,2]
[311549604,1705218640137,-230.48830562,0.00027,2]
[311549605,1705218640146,-230.48830562,0.00027,2]
[311549606,1705218640155,-230.48830562,0.00027,2]
[311549607,1705218640164,-230.48830562,0.00027,2]
[311549608,1705218640174,-150.34,0.00027094,2]
[311549609,1705218640183,-1756.50552638,0.00027155,2]
[311549610,1705218640192,-155.0,0.00027397,2]
[311549611,1705218640201,-223.65766151,0.00027397,2]
[311549612,1705218640211,-1484.75,0.00027397,2]
[311549613,1705218640220,-250.0,0.00027397,2]
[311549614,1705218640229,-172.95116857,0.000274,2]
[311549615,1705218640239,-250.0,0.000274,2]
[311549616,1705218640249,-4187.19304727,0.000274,2]
[311549617,1705218640259,-635.27,0.00027465,2]
[311549618,1705218640268,-7972.41923056,0.000275,2]
[311549619,1705218640277,-185.47415034,0.000275,2]
[311549620,1705218640286,-167.0,0.00027505,2]
[311549621,1705218640295,-1484.75,0.00027556,2]
[311549622,1705218640306,-569.31,0.00027566,2]
[311549623,1705218640315,-491.78,0.00027619,2]
[311549624,1705218640324,-540.218,0.000277,2]
[311549625,1705218640333,-1234.0,0.000277,2]
[311549626,1705218640343,-1252.0,0.000277,2]
[311549627,1705218640352,-1932.0,0.000277,2]
[311549628,1705218640362,-19688.0,0.000277,2]
[311549629,1705218640371,-1484.75,0.00027714,2]
[311549630,1705218640380,-150.0,0.000278,2]
[311549631,1705218640389,-500.0,0.000278,2]
[311549632,1705218640398,-1484.75,0.00027872,2]
[311549633,1705218640407,-202.89143555,0.00028,2]
[311549634,1705218640416,-688.18453345,0.00028,2]
[311549635,1705218640425,-6148.22144652,0.00028,2]
[311549636,1705218640434,-440.23630575,0.00028,2]
[311549637,1705218640443,-1484.75,0.0002803,2]
[311549638,1705218640453,-1484.75,0.00028189,2]
[311549639,1705218640462,-1756.50552638,0.00028219,2]
[311549640,1705218640471,-167.0,0.00028307,2]
[311549641,1705218640479,-150.34,0.00028339,2]
[311549642,1705218640488,-1484.75,0.00028347,2]
[311549643,1705218640497,-3435.0,0.00028463,7]
[311549644,1705218640506,-569.31,0.00028471,2]
[311549645,1705218640515,-1484.75,0.00028505,2]
[311549646,1705218640524,-500.0,0.00028521,2]
[311549647,1705218640532,-619.23466948,0.00028629,2]
[311549648,1705218640542,-1484.75,0.00028664,2]
[311549649,1705218640551,-156.2,0.00028755,2]
[311549650,1705218640560,-155.0,0.00028767,2]
[311549651,1705218640570,-151.686027,0.000288,2]
[311549652,1705218640578,-508.836572,0.000288,2]
[311549653,1705218640587,-1484.75,0.00028822,2]
[311549654,1705218640596,-6448.9976975,0.0002898,2]
[311549655,1705218640605,-5883.9481522,0.0002898,2]
[311549656,1705218640615,-2169.8571668,0.0002898,2]
[311549657,1705218640624,-51861.3833299,0.0002898,2]
[311549658,1705218640633,-129265.41586388,0.00029,2]
[311549659,1705218640643,-160.22080585,0.00029,2]
[311549660,1705218640651,-36176.46602991,0.00029,15]
[311549661,1705218640660,-140994.75,0.00029,2]
[311549662,1705218640669,-1756.50552638,0.00029282,2]
[311549663,1705218640678,-151.0,0.00029317,2]
[311549664,1705218640688,-202.749623,0.00029352,2]
[311549665,1705218640697,-625.773279,0.00029352,2]
[311549666,1705218640706,-184.948627,0.00029352,2]
[311549667,1705218640715,-646.549703,0.00029352,2]
[311549668,1705218640725,-569.31,0.00029376,2]
[311549669,1705218640734,-187.78095067,0.000295,3]
[311549670,1705218640743,-150.34,0.00029585,2]
[311549671,1705218640752,-213.0,0.00029669,12]
[311549672,1705218640761,-22335.75274887,0.000297,2]
[311549673,1705218640770,-202.749623,0.00029719,2]
[311549674,1705218640779,-625.773279,0.00029719,2]
[311549675,1705218640789,-646.549703,0.00029719,2]
[311549676,1705218640799,-175.36700291,0.000298,2]
[311549677,1705218640811,-2572.43234515,0.000298,4]
[311549678,1705218640821,-4574.9299905,0.00029979,2]
[311549679,1705218640830,-4589.8105294,0.00029979,2]
[311549680,1705218640841,-1692.610644,0.00029979,2]
[311549681,1705218640850,-40474.5197608,0.00029979,2]
[311549682,1705218640859,-862.17752111,0.0002998,3]
[311549683,1705218640869,-4166.69522976,0.00029997,2]
[311549684,1705218640878,-2351.66,0.00029999,2]
[311549685,1705218640888,-150.0,0.00029999,2]
[311549686,1705218640897,-150.0,0.00029999,2]
[311549687,1705218640906,-1550.98451752,0.0003,4]
[311549688,1705218640915,-9629.9439869,0.0003,2]
[311549689,1705218640924,-6854.58505687,0.0003,4]
[311549690,1705218640933,-933.85847602,0.0003,4]
[311549691,1705218640942,-308587.54398008,0.0003,4]
[311549692,1705218640951,-2500.0,0.0003,2]
[311549693,1705218640961,-827.92042913,0.0003,2]
[311549694,1705218640970,-165.18981203,0.0003,4]
[311549695,1705218640979,-72853.5064506,0.0003,4]
[311549696,1705218640988,-582.05205839,0.0003,2]
[311549697,1705218640998,-8831.43547175,0.0003,4]
[311549698,1705218641007,-691.26375059,0.0003,2]
[311549699,1705218641016,-597.481796,0.0003,4]
[311549700,1705218641026,-155.0,0.0003,2]
[311549701,1705218641035,-968.68210221,0.0003,4]
[311549702,1705218641044,-155.0,0.0003,4]
[311549703,1705218641053,-670.4146395,0.0003,30]
[311549704,1705218641062,-19008.95241927,0.0003,4]
[311549705,1705218641071,-813.43239814,0.0003,4]
[311549706,1705218641081,-2550.6211898,0.0003,4]
[311549707,1705218641090,-462.05479201,0.0003,4]
[311549708,1705218641099,-156.73885552,0.0003,4]
[311549709,1705218641108,-1579.69244844,0.0003,2]
[311549710,1705218641117,-52227.45475219,0.0003,4]
[311549711,1705218641126,-323.99551195,0.0003,2]
[311549712,1705218641135,-9025.285,0.0003,3]
[311549713,1705218641145,-153.097547,0.0003,3]
[311549714,1705218641154,-61962.412,0.0003,2]
[311549715,1705218641163,-157.81,0.0003,2]
[311549716,1705218641173,-157.81,0.0003,2]
[311549717,1705218641182,-157.81,0.0003,2]
[311549718,1705218641191,-393.35154443,0.0003,2]
[311549719,1705218641200,-151.0,0.0003,7]
[311549720,1705218641209,-156.04186,0.0003,7]
[311549721,1705218641219,-500.0,0.0003,3]
[311549722,1705218641228,-151.0,0.0003,7]
[311549723,1705218641237,-151.0,0.0003,7]
[311549724,1705218641247,-202.0,0.0003,2]
[311549725,1705218641256,-1821.0,0.0003,2]
[311549726,1705218641265,-78599.0,0.0003,2]
[311549727,1705218641274,-210.5805006,0.0003,2]
[311549728,1705218641284,-3000.0,0.0003,2]
[311549729,1705218641293,-3000.0,0.0003,2]
[311549730,1705218641303,-3000.0,0.0003,2]
[311549731,1705218641312,-3000.0,0.0003,2]
[311549732,1705218641322,-3000.0,0.0003,2]
[311549733,1705218641331,-3000.0,0.0003,2]
[311549734,1705218641340,-1012.116204,0.0003,7]
[311549735,1705218641349,-313.04,0.0003,2]
[311549736,1705218641358,-1000.0,0.0003,2]
[311549737,1705218641368,-187.112986,0.0003,7]
[311549738,1705218641377,-151.0,0.0003,7]
[311549739,1705218641386,-675.243509,0.0003,2]
[311549740,1705218641395,-168.483444,0.0003,7]
[311549741,1705218641404,-202.749623,0.00030086,2]
[311549742,1705218641413,-625.773279,0.00030086,2]
[311549743,1705218641423,-646.549703,0.00030086,2]
[311549744,1705218641432,-359.51135318,0.000301,4]
[311549745,1705218641441,-166.4446938,0.000301,2]
[311549746,1705218641449,-250.0,0.000301,2]
[311549747,1705218641458,-250.0,0.000301,2]
[311549748,1705218641467,-250.0,0.000301,2]
[311549749,1705218641476,-250.0,0.000301,2]
[311549750,1705218641485,-250.0,0.000301,2]
[311549751,1705218641494,-250.0,0.000301,2]
[311549752,1705218641503,-408.1,0.000301,2]
[311549753,1705218641512,-171.98366677,0.00030135,4]
[311549754,1705218641521,-4310.16476082,0.00030136,4]
[311549755,1705218641530,-683.11765444,0.00030136,4]
[311549756,1705218641539,-500.0,0.00030136,2]
[311549757,1705218641547,-500.0,0.00030136,2]
[311549758,1705218641558,-500.0,0.00030136,2]
[311549759,1705218641567,-500.0,0.00030136,2]
[311549760,1705218641577,-500.0,0.00030136,2]
[311549761,1705218641586,-500.0,0.00030136,2]
[311549762,1705218641595,-500.0,0.00030136,2]
[311549763,1705218641605,-6772.18165208,0.00030136,4]
[311549764,1705218641614,-3101.03122827,0.00030136,7]
[311549765,1705218641623,-350.91733238,0.00030136,2]
[311549766,1705218641632,-200.0,0.00030136,2]
[311549767,1705218641641,-309.0923506,0.00030136,7]
[311549768,1705218641650,-634.16,0.00030136,2]
[311549769,1705218641658,-634.16,0.00030136,2]
[311549770,1705218641668,-634.16,0.00030136,2]
[311549771,1705218641676,-634.16,0.00030136,2]
[311549772,1705218641685,-634.16,0.00030136,2]
[311549773,1705218641694,-634.16,0.00030136,2]
[311549774,1705218641703,-634.16,0.00030136,2]
[311549775,1705218641712,-634.16,0.00030136,2]
[311549776,1705218641721,-634.16,0.00030136,2]
[311549777,1705218641729,-634.16,0.00030136,2]
[311549778,1705218641738,-634.16,0.00030136,2]
[311549779,1705218641747,-634.16,0.00030136,2]
[311549780,1705218641756,-634.16,0.00030136,2]
[311549781,1705218641765,-634.16,0.00030136,2]
[311549782,1705218641774,-634.16,0.00030136,2]
[311549783,1705218641783,-634.16,0.00030136,2]